bitfinex-derivatives/quotes_ETHF0:USTF0_20240822
["timestamp","ask_amount","ask_price","bid_price","bid_amount"]
[1724315240982,0.37915,2636.6,2636.3,0.37919]
[1724315241176,5.4951,2636.5,2636.3,0.37919]
[1724315241581,9.2831,2636.5,2636.2,0.3792]
[1724315241788,5.4903,2636.5,2636.2,0.3792]
[1724315243082,5.4903,2636.5,2636.4,0.37918]
[1724315249482,3.2078,2636.5,2636.4,0.37918]
[1724315249681,5.455,2636.5,2636.4,0.37918]
[1724315254792,5.455,2636.5,2636.3,0.37919]
[1724315255390,5.83416,2636.5,2636.3,0.37919]
[1724315255789,5.455,2636.5,2636.3,0.37919]
[1724315256292,5.455,2636.5,2636.4,0.37918]
[1724315256496,4.3118,2636.5,2636.4,0.37918]
[1724315256795,3.2078,2636.5,2636.4,0.37918]
[1724315258700,0.00569584,2636.6,2636.5,0.37916]
[1724315258886,3.21349584,2636.6,2636.5,0.37916]
[1724315260495,3.21349584,2636.6,2636.5,1.47116]
[1724315263194,0.00569584,2636.6,2636.5,1.47116]
[1724315263395,0.00569584,2636.6,2636.5,0.37916]
[1724315263700,3.59264584,2636.6,2636.5,0.37916]
[1724315264202,0.37916,2636.5,2636.2,1.092]
[1724315264505,1.1633,2636.4,2636.3,0.37918]
[1724315265800,1.54249,2636.4,2636.2,1.092]
[1724315266106,5.82449,2636.3,2636.1,0.38955631]
[1724315267006,5.4453,2636.3,2636.1,0.38955631]
[1724315269606,2.2375,2636.3,2636.1,0.38955631]
[1724315269809,0.3792,2636.2,2636.1,0.01034631]
[1724315270002,2.2375,2636.3,2636.1,0.01034631]
[1724315270597,0.3792,2636.2,2636.1,0.01034631]
[1724315270903,2.6167,2636.3,2636.1,0.01034631]
[1724315273707,2.6167,2636.3,2636.1,0.38956631]
[1724315276005,2.6167,2636.3,2636.2,0.3792]
[1724315276006,1.1455,2636.3,2636.2,0.3792]
[1724315276504,3.2078,2636.4,2636.3,0.37919]
[1724315276696,4.3484,2636.4,2636.3,1.47119]
[1724315277499,3.2078,2636.4,2636.3,7.15995]
[1724315277707,3.2078,2636.4,2636.3,6.21197]
[1724315279310,3.2078,2636.4,2636.3,5.26399]
[1724315283413,3.2078,2636.4,2636.3,0.37919]
[1724315284006,3.2078,2636.4,2636.2,0.3792]
[1724315284209,1.1408,2636.3,2636.2,0.3792]
[1724315285010,3.2078,2636.4,2636.3,0.37919]
[1724315285210,3.2078,2636.4,2636.3,1.57699]
[1724315285401,3.2078,2636.4,2636.3,2.72439]
[1724315287914,3.2078,2636.4,2636.3,3.67237]
[1724315288716,3.2078,2636.4,2636.3,2.72439]
[1724315290009,3.2078,2636.4,2636.3,6.51719]
[1724315290215,3.2078,2636.4,2636.3,7.46517]
[1724315290615,3.2078,2636.4,2636.3,6.51719]
[1724315292113,3.2078,2636.4,2636.3,0.38399]
[1724315292629,5.4733,2636.4,2636.3,0.38399]
[1724315292816,4.3813,2636.4,2636.3,0.38399]
[1724315293316,6.86416695,2636.4,2636.3,0.38399]
[1724315297513,8.33534695,2636.4,2636.3,0.0048]
[1724315297714,9.64528,2636.4,2636.3,0.0048]
[1724315299313,9.53038128,2636.3,2636.1,0.38955631]
[1724315299512,3.57712053,2636.2,2636.1,0.38955631]
[1724315299818,3.59249075,2636.2,2636.1,0.38955631]
[1724315300019,1.1074,2636.2,2636.1,0.38955631]
[1724315300515,8.76163497,2636.1,2636.0,2.04009]
[1724315300728,8.76163497,2636.1,2636.0,2.41932]
[1724315301519,6.33900827,2636.0,2635.9,0.94812]
[1724315301723,6.33900827,2636.0,2635.9,2.41937]
[1724315301925,6.33900827,2636.0,2635.9,6.21297]
[1724315302511,0.6917266,2635.9,2635.8,9.52940584]
[1724315302716,0.6917266,2635.9,2635.8,10.62140584]
[1724315302917,0.6917266,2635.9,2635.8,7.42802186]
[1724315303117,0.6917266,2635.9,2635.8,6.81466584]
[1724315303523,0.6917266,2635.9,2635.8,6.81797261]
[1724315303722,0.6917266,2635.9,2635.8,7.81058863]
[1724315303918,0.6917266,2635.9,2635.8,6.81797261]
[1724315304626,0.00483442,2636.1,2636.0,1.32732]
[1724315304819,0.00483442,2636.1,2636.0,1.7275934]
[1724315305019,0.00483442,2636.1,2636.0,2.1068234]
[1724315308525,0.00483442,2636.1,2636.0,3.0980209]
[1724315311427,0.00483442,2636.1,2636.0,2.1068234]
[1724315311929,0.00483442,2636.1,2636.0,3.0980209]
[1724315313830,0.00483442,2636.1,2636.0,4.0461109]
[1724315314224,0.00483442,2636.1,2636.0,3.0549134]
[1724315314832,2.48509075,2636.5,2636.3,0.94798]
[1724315315139,3.59018659,2636.6,2636.5,1.32707]
[1724315315334,3.59018659,2636.6,2636.5,2.41907]
[1724315315528,7.38378659,2636.6,2636.5,2.41907]
[1724315315725,7.38378659,2636.6,2636.5,1.47116]
[1724315315934,4.90151028,2636.6,2636.5,1.47116]
[1724315316433,7.38660103,2636.6,2636.5,1.47116]
[1724315318133,7.76575103,2636.6,2636.5,0.37916]
[1724315318330,8.10931028,2636.6,2636.5,0.37916]
[1724315318733,7.76588138,2636.6,2636.5,0.37916]
[1724315320439,7.76587138,2636.6,2636.5,0.37916]
[1724315320738,4.90151028,2636.6,2636.5,0.37916]
[1724315321033,7.38695028,2636.6,2636.5,1.32707]
[1724315321935,7.38695028,2636.6,2636.5,2.41907]
[1724315325131,4.90151028,2636.6,2636.5,2.41907]
[1724315325331,4.90151028,2636.6,2636.5,1.32707]
[1724315325936,7.38704514,2636.6,2636.5,1.32707]
[1724315326137,7.38704514,2636.6,2636.5,2.41907]
[1724315332334,4.90151028,2636.6,2636.5,0.37916]
[1724315332746,5.28066028,2636.6,2636.5,0.37916]
[1724315333045,6.37266028,2636.6,2636.5,0.37916]
[1724315334540,5.28066028,2636.6,2636.5,0.37916]
[1724315335939,4.90151028,2636.6,2636.5,0.37916]
[1724315336537,4.90151028,2636.6,2636.5,1.32707]
[1724315336739,7.38693695,2636.6,2636.5,1.32707]
[1724315342041,5.28066028,2636.6,2636.5,0.37916]
[1724315342633,4.90151028,2636.6,2636.5,0.37916]
[1724315342839,7.38692781,2636.6,2636.5,0.37916]
[1724315343247,7.38692781,2636.6,2636.5,0.38396]
[1724315344332,4.90151028,2636.6,2636.5,1.33187]
[1724315344538,7.38715902,2636.6,2636.5,1.33187]
[1724315345243,7.38715902,2636.6,2636.5,1.47596]
[1724315345450,4.90151028,2636.6,2636.5,1.47596]
[1724315345850,4.90151028,2636.6,2636.5,0.38396]
[1724315346049,5.99351028,2636.6,2636.5,0.38396]
[1724315348136,4.90151028,2636.6,2636.5,0.38396]
[1724315351844,4.90151028,2636.6,2636.5,1.33187]
[1724315352244,4.90151028,2636.6,2636.5,2.27978]
[1724315352245,0.00851028,2636.6,2636.5,2.27978]
[1724315352444,0.00851028,2636.6,2636.5,4.1030775]
[1724315352675,0.00851028,2636.6,2636.5,9.1030775]
[1724315352847,0.00851028,2636.6,2636.5,10.00817125]
[1724315353150,0.00851028,2636.6,2636.5,9.10334806]
[1724315354349,0.00851028,2636.6,2636.5,9.24743806]
[1724315354658,0.00851028,2636.6,2636.5,4.24743806]
[1724315355150,0.00851028,2636.6,2636.5,3.25597]
[1724315356547,0.00851028,2636.6,2636.5,2.42387]
[1724315357250,0.86551028,2636.6,2636.5,2.42387]
[1724315358855,0.86551028,2636.6,2636.5,3.37178]
[1724315359151,0.00851028,2636.6,2636.5,3.37178]
[1724315361659,0.00851028,2636.6,2636.5,4.36324806]
[1724315362648,0.00851028,2636.6,2636.5,3.37178]
[1724315362851,0.00851028,2636.6,2636.5,3.36698]
[1724315369667,0.00851028,2636.6,2636.5,5.2628]
[1724315369853,0.00851028,2636.6,2636.5,3.36698]
[1724315370759,0.00851028,2636.6,2636.5,5.2628]
[1724315370967,0.00851028,2636.6,2636.5,3.36698]
[1724315371562,0.00851028,2636.6,2636.5,6.25426806]
[1724315371766,0.00851028,2636.6,2636.5,4.35844806]
[1724315372665,0.00851028,2636.6,2636.5,3.36698]
[1724315376472,0.00851028,2636.6,2636.5,4.35844806]
[1724315378670,0.00851028,2636.6,2636.5,3.26644806]
[1724315378868,0.00851028,2636.6,2636.5,3.36698]
[1724315379065,0.00851028,2636.6,2636.5,4.35844806]
[1724315381969,3.79360001,2636.7,2636.6,2.27489]
[1724315382160,3.77657943,2636.9,2636.8,0.9478]
[1724315382469,2.48717536,2637.7,2637.4,0.94758]
[1724315382686,4.53777943,2637.7,2637.6,2.41851]
[1724315383073,4.5405107,2637.7,2637.6,2.41851]
[1724315383971,4.5405107,2637.7,2637.6,1.471]
[1724315386077,4.5405107,2637.7,2637.6,2.41851]
[1724315386776,4.5405107,2637.7,2637.6,5.62631]
[1724315387377,1.40637978,2637.8,2637.7,0.37899]
[1724315387572,1.22746515,2637.8,2637.7,1.32647]
[1724315387773,0.00569584,2637.9,2637.8,1.32641]
[1724315387970,3.78227527,2637.9,2637.8,2.41841]
[1724315388276,3.78672313,2637.9,2637.8,3.19820834]
[1724315388668,0.0101437,2637.9,2637.8,3.19820834]
[1724315390373,3.2078,2638.3,2638.1,0.37893]
[1724315390374,0.757,2638.2,2638.1,0.37893]
[1724315390569,0.757,2638.2,2638.1,1.47093]
[1724315390779,4.53357943,2638.2,2638.1,1.47093]
[1724315390979,5.33677943,2638.2,2638.1,1.47093]
[1724315391575,5.34028885,2638.2,2638.1,1.47093]
[1724315392780,5.34028885,2638.2,2638.1,2.41826]
[1724315392971,5.34028885,2638.2,2638.1,12.15599]
[1724315392972,0.00350942,2638.2,2638.1,12.15599]
[1724315393179,0.00569584,2638.4,2638.3,1.32616]
[1724315393476,3.2078,2639.1,2638.3,1.092]
[1724315393678,3.2078,2639.1,2639.0,1.4708]
[1724315393881,1.598,2639.2,2639.1,0.37879]
[1724315394082,5.37759914,2639.2,2639.1,0.37879]
[1724315394987,8.58539914,2639.2,2639.1,0.37879]
[1724315395284,8.96417914,2639.2,2639.0,1.092]
[1724315395581,4.15536943,2639.1,2638.9,1.47649462]
[1724315395781,4.15537943,2639.0,2638.9,0.00568462]
[1724315396185,9.15537943,2639.0,2638.9,0.00568462]
[1724315396377,10.24737943,2639.0,2638.9,0.00568462]
[1724315396977,9.15537943,2639.0,2638.9,0.00568462]
[1724315398375,0.37883,2638.8,2638.6,0.37885]
[1724315398682,3.2078,2638.8,2638.6,0.37886]
[1724315398881,4.55817943,2638.7,2638.6,0.37886]
[1724315400875,4.55817943,2638.7,2638.5,1.092]
[1724315400876,0.37886,2638.6,2638.5,1.092]
[1724315401074,0.37886,2638.6,2638.4,0.00568462]
[1724315401075,0.37887,2638.5,2638.4,0.00568462]
[1724315401285,6.98437943,2638.5,2638.4,0.00568462]
[1724315401487,6.98437943,2638.5,2638.4,0.38457462]
[1724315401682,7.75587943,2638.5,2638.4,0.38457462]
[1724315403488,3.77657943,2638.5,2638.4,2.27901462]
[1724315404282,0.7816,2638.7,2638.4,2.27901462]
[1724315404283,0.7816,2638.7,2638.6,1.32601]
[1724315404473,4.55817943,2638.7,2638.6,2.41801]
[1724315405082,0.7816,2638.7,2638.6,2.41801]
[1724315405291,3.9486,2638.8,2638.7,1.32595]
[1724315405485,6.98437943,2638.8,2638.7,1.32595]
[1724315405683,6.98437943,2638.8,2638.7,2.08925]
[1724315406378,6.98437943,2638.8,2638.7,3.03636]
[1724315406379,3.77657943,2638.8,2638.7,3.03636]
[1724315408094,1.5253,2639.1,2639.0,1.32581]
[1724315408383,0.00301971,2639.2,2639.1,1.32575]
[1724315408596,3.77959914,2639.2,2639.1,2.13565]
[1724315410588,3.77959914,2639.2,2639.1,4.75465]
[1724315411889,3.77959914,2639.2,2639.1,5.70162]
[1724315412675,3.77959914,2639.2,2639.1,3.80768]
[1724315413184,3.77959914,2639.2,2639.1,4.75465]
[1724315414583,3.77959914,2639.2,2639.1,0.37878]
[1724315416088,3.77959914,2639.2,2638.9,5.8268]
[1724315416393,4.15537943,2639.0,2638.9,3.2078]
[1724315416599,3.77657943,2639.0,2638.9,3.58661]
[1724315416897,3.77657943,2639.0,2638.9,3.2078]
[1724315417090,3.77657943,2639.0,2638.9,3.58661]
[1724315417285,8.77657943,2639.0,2638.4,0.00568462]
[1724315417481,8.77657943,2639.0,2638.4,0.38457462]
[1724315417482,3.77657943,2638.5,2638.4,0.38457462]
[1724315418392,0.8121,2638.7,2638.6,0.37886]
[1724315418890,4.58867943,2638.7,2638.4,0.00568462]
[1724315419196,3.77657943,2638.5,2638.4,0.38457462]
[1724315423598,3.77657943,2638.5,2638.4,0.00568462]
[1724315424095,10.10263943,2638.5,2638.4,0.00568462]
[1724315424291,0.37889,2638.4,2637.8,1.69752834]
[1724315424490,3.77657943,2637.9,2637.8,2.07649834]
[1724315424995,3.77657943,2637.9,2637.8,2.83609834]
[1724315425191,3.77657943,2637.9,2637.8,2.83610834]
[1724315428796,3.77657943,2637.9,2637.8,1.88866834]
[1724315429096,3.77657943,2637.9,2637.8,1.12906834]
[1724315429300,3.77657943,2637.9,2637.8,0.38216834]
[1724315430399,3.77657943,2637.9,2637.8,0.00319834]
[1724315430594,4.15553943,2637.9,2637.8,0.00319834]
[1724315430800,8.77657943,2637.9,2637.8,0.00319834]
[1724315431891,9.56057943,2637.9,2637.8,0.00319834]
[1724315432295,4.56057943,2637.9,2637.8,0.00319834]
[1724315432506,9.56057943,2637.9,2637.8,0.00319834]
[1724315433410,9.56057943,2637.9,2637.8,0.38216834]
[1724315433604,9.56057943,2637.9,2637.8,0.00319834]
[1724315434407,4.56057943,2637.9,2637.8,0.00319834]
[1724315434606,9.56057943,2637.9,2637.8,0.00319834]
[1724315434803,9.56057943,2637.9,2637.8,0.38216834]
[1724315435008,4.56057943,2637.9,2637.8,0.38216834]
[1724315435306,9.93953943,2637.9,2637.8,0.00319834]
[1724315435496,9.93953943,2637.9,2637.6,0.00568462]
[1724315435497,9.56057943,2637.9,2637.6,0.00568462]
[1724315435699,8.75706,2637.8,2637.0,0.85565848]
[1724315435904,3.2078,2637.4,2637.3,0.37903]
[1724315436411,6.9998,2637.4,2637.3,0.37903]
[1724315436608,6.9998,2637.4,2637.3,0.381885]
[1724315436819,6.9998,2637.4,2637.3,1.329505]
[1724315437198,3.2078,2637.7,2637.6,0.37899]
[1724315437611,6.999,2637.7,2637.6,0.37899]
[1724315439111,7.7785,2637.7,2637.6,0.37899]
[1724315439306,8.15749,2637.7,2637.6,0.37899]
[1724315439816,7.7785,2637.7,2637.6,0.37899]
[1724315440407,8.15749,2637.7,2637.6,0.37899]
[1724315442106,0.37903,2637.5,2637.3,0.002855]
[1724315442420,4.7951,2637.4,2637.3,0.002855]
[1724315442727,8.5871,2637.4,2637.3,0.002855]
[1724315443111,8.96613,2637.4,2637.3,0.381895]
[1724315443407,8.96613,2637.4,2637.3,1.329515]
[1724315443408,4.7951,2637.4,2637.3,1.329515]
[1724315444723,4.7951,2637.4,2637.3,0.381895]
[1724315445016,4.7903,2637.4,2637.3,0.381895]
[1724315446718,4.7903,2637.4,2637.3,1.329515]
[1724315448023,4.7903,2637.4,2637.3,0.381895]
[1724315453520,4.7903,2637.4,2637.3,1.329515]
[1724315453814,3.2078,2637.4,2637.3,1.329515]
[1724315454618,3.2078,2637.4,2637.3,3.369135]
[1724315455921,3.2078,2637.4,2637.3,7.161135]
[1724315456120,3.2078,2637.7,2637.6,2.27404]
[1724315456422,3.2078,2637.7,2637.6,4.89404]
[1724315456629,3.21348462,2638.0,2637.9,0.37896]
[1724315456924,3.21348462,2638.0,2637.9,4.96486]
[1724315457120,3.21348462,2638.0,2637.9,6.59756]
[1724315457315,3.21348462,2638.0,2637.9,0.7989]
[1724315457817,4.01828462,2638.0,2637.9,0.7989]
[1724315459823,4.01828462,2638.0,2637.8,0.37897]
[1724315460011,0.8323,2637.9,2637.8,1.21567]
[1724315460521,1.6611,2637.9,2637.8,1.21567]
[1724315460718,1.6611,2637.9,2637.4,4.2485]
[1724315460919,3.2078,2637.7,2637.6,0.379]
[1724315461421,1.6611,2637.9,2637.7,0.37898]
[1724315461614,1.6611,2637.9,2637.6,0.379]
[1724315461820,3.2078,2637.7,2637.6,0.379]
[1724315462722,3.2078,2637.7,2637.4,0.37902]
[1724315462924,0.8439,2637.6,2637.4,0.37902]
[1724315463224,0.8221,2637.5,2637.4,0.37902]
[1724315463523,1.6678,2637.5,2637.4,0.37902]
[1724315466029,1.6678,2637.5,2637.3,0.860155]
[1724315466030,2.04682,2637.5,2637.3,0.002855]
[1724315466217,3.2078,2637.4,2637.3,0.002855]
[1724315469227,3.2078,2637.4,2637.3,0.381905]
[1724315470123,3.2078,2637.4,2637.3,0.002855]
[1724315470330,3.2078,2637.4,2637.3,0.381905]
[1724315473824,4.53399536,2637.5,2637.4,0.37903]
[1724315474031,7.74179536,2637.5,2637.4,0.37903]
[1724315475531,7.36277536,2637.5,2637.4,0.37903]
[1724315476124,4.8756,2637.5,2637.4,0.37903]
[1724315477928,9.04582,2637.5,2637.4,0.37903]
[1724315480028,1.32662,2637.4,2637.3,0.002855]
[1724315480241,5.11862,2637.4,2637.3,0.002855]
[1724315480436,4.17103,2637.4,2637.3,0.381905]
[1724315482539,5.25463,2637.5,2637.4,0.37903]
[1724315482940,9.04583,2637.5,2637.4,0.37903]
[1724315486034,4.8756,2637.5,2637.4,1.32662]
[1724315486333,6.53575544,2637.5,2637.4,2.27421]
[1724315486539,3.2078,2637.5,2637.4,2.27421]
[1724315486742,3.2078,2637.5,2637.4,3.06851]
[1724315489138,3.2078,2637.5,2637.4,6.85971]
[1724315489442,3.2078,2637.5,2637.4,9.47971]
[1724315489737,5.69529574,2638.0,2637.9,1.32637]
[1724315490143,5.69529574,2638.0,2637.9,2.13607]
[1724315490445,5.69529574,2638.0,2637.9,1.18866]
[1724315490632,5.69529574,2638.0,2637.9,2.13607]
[1724315491038,5.69529574,2638.0,2637.9,0.37896]
[1724315491236,6.07424574,2638.0,2637.9,0.37896]
[1724315492136,5.69529574,2638.0,2637.9,0.37896]
[1724315492443,5.69529574,2638.0,2637.9,1.18326]
[1724315493839,6.07424574,2638.0,2637.9,1.18326]
[1724315494040,0.37896,2637.9,2637.8,0.37897]
[1724315494237,2.86009727,2637.9,2637.8,0.37897]
[1724315495145,0.37896,2637.9,2637.8,0.37897]
[1724315495938,2.85529727,2637.9,2637.8,0.37897]
[1724315497344,0.37416,2637.9,2637.8,0.37897]
[1724315498339,6.07357189,2638.0,2637.9,0.37896]
[1724315498643,5.69462189,2638.0,2637.9,0.37896]
[1724315500546,6.07357189,2638.0,2637.9,0.37896]
[1724315500842,9.86477189,2638.0,2637.9,0.37896]
[1724315501043,0.37899,2637.8,2637.7,0.37897]
[1724315501244,2.85954308,2637.9,2637.8,0.37897]
[1724315501444,0.37897,2637.9,2637.8,0.37897]
[1724315501742,6.65075938,2637.9,2637.8,0.37897]
[1724315501946,4.17017,2637.9,2637.8,0.37897]
[1724315502445,0.37898,2637.8,2637.7,0.37898]
[1724315502643,1.16768,2637.8,2637.7,0.37898]
[1724315503939,0.7887,2637.8,2637.7,0.37898]
[1724315504136,3.2696959,2637.8,2637.7,0.37898]
[1724315504632,0.7887,2637.8,2637.7,0.37898]
[1724315505036,2.4809959,2637.9,2637.8,0.37897]
[1724315505340,4.42293462,2638.0,2637.9,0.37896]
[1724315505737,8.21413462,2638.0,2637.9,0.37896]
[1724315510343,4.42293462,2638.0,2637.9,0.37896]
[1724315511347,0.94741,2637.9,2637.4,0.94756]
[1724315511557,0.37902,2637.6,2637.5,0.37901]
[1724315512050,4.46889952,2637.6,2637.5,0.37901]
[1724315512650,1.98752,2637.6,2637.5,0.37901]
[1724315513745,4.46889952,2637.6,2637.5,0.37901]
[1724315514251,1.98752,2637.6,2637.5,0.37901]
[1724315514853,4.46889952,2637.6,2637.5,0.37901]
[1724315515054,5.25609952,2637.6,2637.5,0.37901]
[1724315515757,0.37902,2637.5,2637.4,0.37902]
[1724315516852,5.25661844,2637.6,2637.5,0.37902]
[1724315517255,9.04781844,2637.6,2637.5,0.37902]
[1724315518655,8.66880844,2637.6,2637.5,0.37902]
[1724315519046,9.04781844,2637.6,2637.5,0.37902]
[1724315519554,8.66880844,2637.6,2637.5,0.37902]
[1724315520262,11.87660844,2637.6,2637.5,0.37902]
[1724315520754,12.25561844,2637.6,2637.5,0.37902]
[1724315521357,8.08540844,2637.6,2637.5,0.37902]
[1724315521558,3.2078,2637.6,2637.5,0.37902]
[1724315521759,3.2078,2637.6,2637.5,1.21122]
[1724315522351,6.06871844,2637.6,2637.5,1.21122]
[1724315522550,5.68970844,2637.6,2637.5,1.21122]
[1724315522854,6.06871844,2637.6,2637.5,1.21122]
[1724315523450,5.68970844,2637.6,2637.5,1.21122]
[1724315524449,3.2078,2637.6,2637.5,2.15878]
[1724315524856,3.2078,2637.6,2637.5,4.19834]
[1724315525158,3.2078,2637.6,2637.5,7.98954]
[1724315528468,3.2078,2637.6,2637.5,6.89754]
[1724315528765,3.2078,2637.6,2637.5,3.10634]
[1724315529453,3.2078,2637.6,2637.5,6.89754]
[1724315530158,3.2078,2637.6,2637.5,11.89754]
[1724315530457,0.83898462,2638.0,2637.7,0.94748]
[1724315530458,2.48190844,2637.9,2637.7,0.94748]
[1724315530663,2.48190844,2637.9,2637.8,2.96123]
[1724315530953,0.00568462,2638.0,2637.8,2.96123]
[1724315530954,2.48759306,2638.0,2637.9,1.32637]
[1724315531154,2.48759306,2638.0,2637.9,2.14827]
[1724315531554,2.48759306,2638.0,2637.9,5.93947]
[1724315531855,0.00568462,2638.0,2637.9,11.88688]
[1724315535467,0.00568462,2638.0,2637.9,12.44883747]
[1724315535767,0.00568462,2638.0,2637.9,7.44883747]
[1724315537861,0.00568462,2638.0,2637.9,6.88688]
[1724315538261,0.00568462,2638.0,2637.9,5.93947]
[1724315538854,0.00568462,2638.0,2637.9,0.37896]
[1724315539052,0.82358462,2638.0,2637.9,0.37896]
[1724315540066,4.99374462,2638.0,2637.9,0.37897]
[1724315540275,7.47565306,2638.0,2637.9,0.37897]
[1724315540463,3.68445306,2638.0,2637.9,0.37897]
[1724315540972,3.68445306,2638.0,2637.8,0.37897]
[1724315541158,3.2078,2637.9,2637.8,0.37897]
[1724315546658,3.30549306,2638.0,2637.9,0.37897]
[1724315547073,7.09669306,2638.0,2637.9,0.37897]
[1724315547371,10.30449306,2638.0,2637.9,0.37897]
[1724315548064,7.09669306,2638.0,2637.9,0.37897]
[1724315548270,10.30449306,2638.0,2637.9,0.37897]
[1724315548471,11.39649306,2638.0,2637.9,0.37897]
[1724315548670,8.91458462,2638.0,2637.9,0.37897]
[1724315549069,0.37897,2637.9,2637.8,0.37897]
[1724315549272,3.95287844,2637.9,2637.8,0.37897]
[1724315549776,3.57390844,2637.9,2637.8,0.37897]
[1724315549969,3.95287844,2637.9,2637.8,0.37897]
[1724315550169,0.37901,2637.6,2637.5,0.37901]
[1724315550371,3.2078,2637.6,2637.4,0.37903]
[1724315550573,2.6201,2637.5,2637.4,0.37903]
[1724315550872,0.37904,2637.4,2637.3,0.002855]
[1724315551175,7.36516115,2637.4,2637.3,0.381905]
[1724315552074,7.74420115,2637.4,2637.3,0.381905]
[1724315552272,7.36516115,2637.4,2637.3,0.381905]
[1724315552575,7.74420115,2637.4,2637.3,0.381905]
[1724315554172,7.36516115,2637.4,2637.3,0.381905]
[1724315554470,3.792,2637.4,2637.3,0.381905]
[1724315554973,4.00926115,2637.5,2637.4,0.37904]
[1724315555187,1.5281,2637.5,2637.4,0.37904]
[1724315555369,1.90712,2637.5,2637.4,0.37904]
[1724315555565,5.48028115,2637.5,2637.4,0.37904]
[1724315558176,8.68808115,2637.5,2637.4,0.37904]
[1724315560664,0.37904,2637.4,2637.3,0.381895]
[1724315561173,4.17104,2637.4,2637.3,0.381895]
[1724315562178,4.94944,2637.4,2637.3,0.381895]
[1724315562681,0.37907,2637.2,2637.1,0.00568462]
[1724315562876,3.2078,2637.2,2637.1,0.38476462]
[1724315563082,3.2078,2637.2,2637.1,3.37218462]
[1724315563373,3.2078,2637.2,2637.1,2.42447462]
[1724315563572,3.21256847,2637.2,2637.1,2.42811247]
[1724315564373,3.21256847,2637.2,2637.1,0.38840247]
[1724315566383,0.00476847,2637.2,2637.1,0.38840247]
[1724315566678,3.59163847,2637.2,2637.1,0.38840247]
[1724315567278,4.68363847,2637.2,2637.1,0.38840247]
[1724315574386,8.47563847,2637.2,2637.1,0.38840247]
[1724315575186,4.68363847,2637.2,2637.1,0.38840247]
[1724315576893,1.47583847,2637.2,2637.1,0.38840247]
[1724315577094,4.68363847,2637.2,2637.1,0.38840247]
[1724315579295,1.47583847,2637.2,2637.1,0.38840247]
[1724315579497,4.68363847,2637.2,2637.1,0.38840247]
[1724315579691,8.47563847,2637.2,2637.1,0.38840247]
[1724315580197,9.26033847,2637.2,2637.1,0.38840247]
[1724315580390,5.46833847,2637.2,2637.1,0.38840247]
[1724315581095,10.20801847,2637.2,2637.1,0.38840247]
[1724315581295,10.20801847,2637.2,2637.1,0.00932247]
[1724315584095,10.20801847,2637.2,2637.1,0.38840247]
[1724315584096,12.68683089,2637.2,2637.1,0.38840247]
[1724315584293,5.46833847,2637.2,2637.1,0.38840247]
[1724315585101,7.94715089,2637.2,2637.1,0.38840247]
[1724315585301,6.85515089,2637.2,2637.1,0.38840247]
[1724315585597,6.85515089,2637.2,2637.1,2.28382247]
[1724315585598,3.21256847,2637.2,2637.1,2.28382247]
[1724315585800,3.21256847,2637.2,2637.1,9.56712247]
[1724315586009,4.30456847,2637.2,2637.1,3.73541247]
[1724315586299,4.30456847,2637.2,2637.1,7.52741247]
[1724315587197,4.30456847,2637.2,2637.1,6.57970247]
[1724315587805,4.30456847,2637.2,2637.1,2.78770247]
[1724315587999,4.30456847,2637.2,2637.1,1.17520247]
[1724315588399,5.09076847,2637.2,2637.1,1.17520247]
[1724315588600,5.46983847,2637.2,2637.1,0.79612247]
[1724315588808,5.46983847,2637.2,2637.1,0.00932247]
[1724315589297,7.94865089,2637.2,2637.1,0.38840247]
[1724315589505,7.94865089,2637.2,2637.1,0.00932247]
[1724315589693,7.94865089,2637.2,2637.1,0.38840247]
[1724315589890,7.56958089,2637.2,2637.1,0.38840247]
[1724315590309,13.88276847,2637.2,2636.3,0.94799]
[1724315590611,1.092,2636.7,2636.5,0.8239]
[1724315590811,3.2078,2636.6,2636.5,1.20306]
[1724315590998,4.016,2636.6,2636.5,1.20306]
[1724315591310,4.016,2636.6,2636.5,1.20659757]
[1724315593301,4.016,2636.6,2636.5,2.29859757]
[1724315593302,3.2078,2636.6,2636.5,2.29859757]
[1724315595007,3.2078,2636.6,2636.5,7.98725757]
[1724315595199,5.68920807,2636.9,2636.8,0.37912]
[1724315595400,5.6913245,2636.9,2636.8,1.47112]
[1724315596098,5.6913245,2636.9,2636.8,6.21174]
[1724315596305,3.2078,2636.9,2636.8,6.21174]
[1724315596508,3.2078,2636.9,2636.8,12.15956]
[1724315596509,2.60590949,2636.9,2636.8,12.15956]
[1724315596705,0.00476847,2637.2,2636.8,12.15956]
[1724315596706,3.21256847,2637.2,2637.1,1.32679]
[1724315596903,0.00476847,2637.2,2637.1,1.32679]
[1724315597209,0.00476847,2637.2,2637.1,5.93819]
[1724315597413,0.00476847,2637.2,2637.1,6.77699]
[1724315597614,0.00476847,2637.2,2637.1,5.82928]
[1724315598112,0.00476847,2637.2,2637.1,5.83408]
[1724315600209,0.00476847,2637.2,2637.1,10.83408]
[1724315600601,0.00476847,2637.2,2637.1,5.83408]
[1724315601011,0.00476847,2637.2,2637.1,10.83408]
[1724315601208,0.00476847,2637.2,2637.1,11.78179]
[1724315602212,0.00476847,2637.2,2637.1,10.83408]
[1724315602611,0.00476847,2637.2,2637.1,5.83408]
[1724315603416,0.00476847,2637.2,2637.1,6.78179]
[1724315603614,0.00476847,2637.2,2637.1,5.83408]
[1724315604012,0.00476847,2637.2,2637.1,11.78179]
[1724315604309,0.00476847,2637.2,2637.1,10.83408]
[1724315604518,0.00476847,2637.2,2637.1,5.83408]
[1724315606117,0.00476847,2637.2,2637.1,2.04208]
[1724315606312,0.00476847,2637.2,2637.1,0.38388]
[1724315606508,0.79996847,2637.2,2637.1,0.38388]
[1724315606713,4.75456297,2637.2,2637.1,0.0048]
[1724315607109,3.66256297,2637.2,2637.1,0.0048]
[1724315607615,3.66256297,2637.2,2637.1,0.38388]
[1724315607616,3.28349297,2637.2,2637.1,0.38388]
[1724315609616,4.37549297,2637.2,2637.1,0.0048]
[1724315609817,8.54656297,2637.2,2637.1,0.0048]
[1724315610125,6.06303847,2637.2,2637.1,0.0048]
[1724315610509,8.16687125,2637.2,2637.1,0.38388]
[1724315610709,8.54594125,2637.2,2637.1,0.0048]